bitfinex/quotes_BTCUSD_20240811
["timestamp","ask_amount","ask_price","bid_price","bid_amount"]
[1723347428902,0.000833,61318.0,61317.0,0.570259]
[1723347429103,0.000833,61318.0,61317.0,0.573259]
[1723347429314,0.001833,61318.0,61317.0,0.573259]
[1723347429521,0.000833,61318.0,61317.0,0.570259]
[1723347429721,0.001833,61318.0,61317.0,0.571259]
[1723347429859,0.001833,61318.0,61317.0,0.247086]
[1723347431116,0.001833,61318.0,61317.0,0.246086]
[1723347431117,0.000833,61318.0,61317.0,0.246086]
[1723347431560,0.001833,61318.0,61317.0,0.249086]
[1723347431708,0.001833,61318.0,61317.0,0.246086]
[1723347431912,0.001833,61318.0,61317.0,0.244086]
[1723347432132,0.002833,61318.0,61317.0,0.084]
[1723347432297,0.003833,61318.0,61317.0,0.086]
[1723347432698,0.002833,61318.0,61317.0,0.084]
[1723347432898,0.000833,61318.0,61317.0,0.081]
[1723347433188,0.001833,61318.0,61317.0,0.083]
[1723347433393,0.000833,61318.0,61317.0,0.081]
[1723347433844,0.000833,61318.0,61317.0,0.083]
[1723347434047,0.000833,61318.0,61317.0,0.002]
[1723347434404,0.001833,61318.0,61317.0,0.004]
[1723347434609,0.000833,61318.0,61317.0,0.002]
[1723347435027,0.001833,61318.0,61317.0,0.002]
[1723347435204,0.000833,61318.0,61315.0,0.16309]
[1723347435406,0.000833,61318.0,61317.0,0.004]
[1723347435776,0.001833,61318.0,61317.0,0.004]
[1723347435979,0.001833,61318.0,61317.0,0.002]
[1723347436360,0.001833,61318.0,61317.0,0.004]
[1723347436564,0.001833,61318.0,61317.0,1.45701992]
[1723347436768,0.10590514,61344.0,61332.0,0.01]
[1723347436945,0.3746341,61350.0,61343.0,0.16284646]
[1723347437155,0.01808129,61344.0,61343.0,0.081]
[1723347437353,0.01807936,61348.0,61343.0,0.081]
[1723347437575,0.163013,61345.0,61343.0,0.081]
[1723347437797,0.0776,61355.0,61343.0,0.081]
[1723347437798,0.326016,61347.0,61343.0,0.081]
[1723347438056,0.16301,61346.0,61343.0,0.083]
[1723347438294,0.163007,61347.0,61343.0,0.083]
[1723347438497,0.163009,61346.0,61343.0,0.083]
[1723347438902,0.326006,61349.0,61343.0,0.083]
[1723347439102,0.163008,61347.0,61343.0,0.083]
[1723347439309,0.001,61345.0,61343.0,0.085]
[1723347439715,0.001,61345.0,61343.0,0.248017]
[1723347439859,0.001,61345.0,61344.0,0.550045]
[1723347440468,0.162997,61351.0,61344.0,0.38703]
[1723347440737,0.162995,61352.0,61344.0,0.38703]
[1723347440928,0.162995,61352.0,61347.0,0.163005]
[1723347441124,0.162995,61352.0,61344.0,0.38703]
[1723347441125,0.162981,61357.0,61349.0,0.326002]
[1723347441278,0.325959,61358.0,61344.0,0.39703]
[1723347441279,0.162986,61355.0,61350.0,0.162997]
[1723347441473,0.162989,61354.0,61350.0,0.162997]
[1723347441905,0.162987,61355.0,61349.0,0.162999]
[1723347442100,0.162988,61355.0,61349.0,0.162999]
[1723347442303,0.005,61352.0,61350.0,0.163998]
[1723347442530,0.170988,61355.0,61350.0,0.163998]
[1723347442722,0.170988,61355.0,61354.0,0.162988]
[1723347442723,0.008,61355.0,61354.0,0.162988]
[1723347442927,0.162978,61358.0,61351.0,0.0762]
[1723347443101,0.000832,61362.0,61355.0,0.325969]
[1723347443102,0.1638,61362.0,61355.0,0.325969]
[1723347443301,0.1638,61362.0,61351.0,0.0762]
[1723347443302,0.262971,61361.0,61354.0,0.325976]
[1723347443523,0.262971,61361.0,61356.0,0.162982]
[1723347443728,0.262971,61361.0,61357.0,0.16298]
[1723347443923,0.262971,61361.0,61355.0,0.325967]
[1723347443924,0.262971,61361.0,61355.0,0.48895]
[1723347444315,0.262971,61361.0,61356.0,0.162982]
[1723347444534,0.269971,61361.0,61356.0,0.162982]
[1723347444907,0.005,61358.0,61356.0,0.162982]
[1723347445283,0.162972,61360.0,61356.0,0.162982]
[1723347445485,0.000832,61362.0,61357.0,0.1372]
[1723347445690,0.170971,61361.0,61357.0,0.300179]
[1723347445902,0.015,61361.0,61357.0,0.1372]
[1723347446078,0.007,61361.0,61358.0,0.162976]
[1723347446457,0.007,61360.0,61357.0,0.1372]
[1723347447186,0.169973,61360.0,61357.0,0.1372]
[1723347447397,0.013,61360.0,61357.0,0.1372]
[1723347447607,0.007,61360.0,61357.0,0.1372]
[1723347447927,0.006,61360.0,61357.0,0.30118]
[1723347448128,0.006,61360.0,61358.0,0.001]
[1723347448528,0.006,61360.0,61357.0,0.30118]
[1723347448732,0.168972,61360.0,61357.0,0.1382]
[1723347449054,0.175972,61360.0,61357.0,0.1392]
[1723347450153,0.007,61360.0,61357.0,0.301179]
[1723347450356,0.007,61360.0,61359.0,0.162975]
[1723347450585,0.013,61360.0,61359.0,0.162975]
[1723347451341,0.000833,61361.0,61357.0,0.46316]
[1723347451503,0.000833,61361.0,61358.0,0.162976]
[1723347451704,0.013,61360.0,61359.0,0.001]
[1723347452081,0.163802,61361.0,61357.0,0.1372]
[1723347452289,0.163802,61361.0,61357.0,0.300179]
[1723347452585,0.171802,61361.0,61357.0,0.301179]
[1723347452784,0.171802,61361.0,61357.0,0.1382]
[1723347453111,0.162974,61360.0,61357.0,0.001]
[1723347453312,0.162977,61358.0,61357.0,0.001]
[1723347454030,0.488932,61358.0,61357.0,0.001]
[1723347454170,0.162977,61358.0,61357.0,0.002]
[1723347454369,0.162977,61358.0,61357.0,0.001]
[1723347454652,0.16298,61357.0,61353.0,0.16299]
[1723347454836,0.162986,61355.0,61351.0,0.162994]
[1723347455043,0.325962,61357.0,61352.0,0.162993]
[1723347455496,0.162983,61356.0,61352.0,0.162993]
[1723347455696,0.162983,61356.0,61348.0,0.4796]
[1723347455697,0.163001,61349.0,61348.0,0.4796]
[1723347455896,0.488975,61353.0,61348.0,0.4796]
[1723347456099,0.325982,61353.0,61348.0,0.4796]
[1723347456301,0.162996,61351.0,61348.0,0.4796]
[1723347456539,0.163,61350.0,61348.0,0.4796]
[1723347457341,0.163001,61349.0,61348.0,0.4796]
[1723347457720,0.163001,61349.0,61348.0,0.005]
[1723347458027,0.162001,61349.0,61348.0,0.004]
[1723347458219,0.488004,61349.0,61348.0,0.004]
[1723347458426,0.163007,61347.0,61343.0,0.163016]
[1723347458634,0.326012,61348.0,61339.0,0.1372]
[1723347458837,0.163012,61346.0,61341.0,0.163022]
[1723347459238,0.163013,61345.0,61341.0,0.163022]
[1723347459465,0.163015,61344.0,61340.0,0.163023]
[1723347460046,0.326021,61346.0,61341.0,0.163022]
[1723347460047,0.163011,61346.0,61341.0,0.163022]
[1723347460248,0.163012,61345.0,61341.0,0.163022]
[1723347460583,0.402912,61348.0,61343.0,0.003]
[1723347460584,0.163015,61344.0,61343.0,0.003]
[1723347460928,0.163015,61344.0,61340.0,0.163025]
[1723347461337,0.163015,61344.0,61339.0,0.1372]
[1723347461338,0.163018,61343.0,61339.0,0.300228]
[1723347461538,0.163013,61345.0,61339.0,0.1372]
[1723347461740,0.163013,61345.0,61341.0,0.163022]
[1723347461944,0.163013,61345.0,61340.0,0.163024]
[1723347462158,0.163017,61343.0,61339.0,0.163027]
[1723347462789,0.402912,61348.0,61340.0,0.326051]
[1723347463007,0.402912,61348.0,61342.0,0.163019]
[1723347463008,0.163011,61346.0,61342.0,0.163019]
[1723347463212,0.163011,61346.0,61340.0,0.326051]
[1723347463213,0.002,61344.0,61341.0,0.163022]
[1723347463591,0.163012,61345.0,61341.0,0.163022]
[1723347464066,0.163012,61345.0,61337.0,0.326062]
[1723347464067,0.163015,61345.0,61339.0,0.163027]
[1723347464242,0.326024,61346.0,61338.0,0.16303]
[1723347464400,0.163018,61343.0,61340.0,0.001]
[1723347464934,0.163018,61343.0,61341.0,0.001]
[1723347465286,0.16302,61342.0,61341.0,0.001]
[1723347466090,0.16302,61342.0,61338.0,0.16303]
[1723347466695,0.163017,61344.0,61338.0,0.32606]
[1723347466967,0.163017,61344.0,61341.0,0.002]
[1723347467179,0.163017,61344.0,61340.0,0.163024]
[1723347467180,0.28104646,61342.0,61323.0,0.04323815]
[1723347467350,0.28104646,61342.0,61320.0,0.49107874]
[1723347467351,0.076,61329.0,61320.0,0.49107874]
[1723347467549,0.326135,61325.0,61320.0,0.49107874]
[1723347467710,0.326135,61325.0,61318.0,0.0009163]
[1723347467917,0.06,61326.0,61318.0,0.0009163]
[1723347467918,0.163081,61319.0,61318.0,0.0009163]
[1723347468112,0.1992,61323.0,61318.0,0.0009163]
[1723347468317,0.489244,61319.0,61318.0,0.0009163]
[1723347469608,0.815407,61319.0,61318.0,0.0009163]
[1723347470417,0.819407,61319.0,61318.0,0.0009163]
[1723347470752,0.818407,61319.0,61318.0,0.0009163]
[1723347470885,0.815407,61319.0,61318.0,0.0009163]
[1723347471096,0.819407,61319.0,61318.0,0.0009163]
[1723347472150,0.493244,61319.0,61318.0,0.0009163]
[1723347472357,0.167081,61319.0,61318.0,0.0009163]
[1723347473149,0.819407,61319.0,61318.0,0.0009163]
[1723347473368,0.493244,61319.0,61318.0,0.0009163]
[1723347478883,0.004,61319.0,61318.0,0.0009163]
[1723347479120,0.004,61319.0,61318.0,0.0620163]
[1723347479680,0.004,61319.0,61318.0,0.2251003]
[1723347479905,0.163077,61321.0,61318.0,0.0620163]
[1723347480105,0.163077,61321.0,61318.0,0.0630163]
[1723347480258,0.001,61319.0,61318.0,0.0630163]
[1723347480455,0.001,61319.0,61318.0,0.0620163]
[1723347480661,0.163077,61321.0,61318.0,0.0620163]
[1723347481087,0.525334,61325.0,61318.0,0.0620163]
[1723347481293,0.163074,61322.0,61318.0,0.0620163]
[1723347481530,0.163076,61321.0,61318.0,0.0620163]
[1723347481727,0.163079,61320.0,61318.0,0.0620163]
[1723347481930,0.1992,61325.0,61318.0,0.0620163]
[1723347482104,0.326142,61323.0,61318.0,0.0620163]
[1723347482323,0.1992,61325.0,61318.0,0.0620163]
[1723347482500,0.1992,61325.0,61318.0,0.2270993]
[1723347482501,0.163074,61322.0,61318.0,0.2270993]
[1723347482700,0.1992,61325.0,61319.0,0.16308]
[1723347482899,0.1992,61325.0,61320.0,0.163077]
[1723347483099,0.1992,61325.0,61318.0,0.3881803]
[1723347483100,0.163072,61323.0,61319.0,0.163081]
[1723347483439,0.163073,61322.0,61318.0,0.0620163]
[1723347483678,0.16307,61324.0,61319.0,0.16308]
[1723347483805,0.163071,61323.0,61318.0,0.0630163]
[1723347484007,0.163071,61323.0,61319.0,0.163081]
[1723347484207,0.001,61322.0,61318.0,0.0620163]
[1723347484652,0.001,61322.0,61318.0,0.2250983]
[1723347485057,0.164073,61322.0,61318.0,0.2250983]
[1723347485463,0.163073,61322.0,61318.0,0.2250983]
[1723347486211,0.163081,61319.0,61318.0,0.0009163]
[1723347486459,0.241781,61319.0,61318.0,0.0009163]
[1723347487076,0.305681,61319.0,61318.0,0.0029163]
[1723347487422,0.305681,61319.0,61318.0,0.0049163]
[1723347487621,0.306681,61319.0,61318.0,0.0049163]
[1723347489104,0.306681,61319.0,61318.0,0.0009163]
[1723347489238,0.632844,61319.0,61318.0,0.0009163]
[1723347489444,0.309681,61319.0,61318.0,0.0009163]
[1723347490050,0.308681,61319.0,61318.0,0.0009163]
[1723347490387,0.635844,61319.0,61318.0,0.0009163]
[1723347490590,0.632844,61319.0,61318.0,0.0009163]
[1723347490816,0.631844,61319.0,61318.0,0.0009163]
[1723347491008,0.634844,61319.0,61318.0,0.0009163]
[1723347491240,0.635844,61319.0,61318.0,0.0009163]
[1723347492133,0.004,61319.0,61318.0,0.0009163]
[1723347492652,0.525334,61325.0,61319.0,0.16308]
[1723347492653,0.163071,61323.0,61319.0,0.16308]
[1723347492853,0.326124,61327.0,61318.0,0.3270843]
[1723347492854,0.163069,61324.0,61320.0,0.163077]
[1723347493164,0.326124,61327.0,61318.0,0.3270843]
[1723347493165,0.326124,61327.0,61318.0,0.1640003]
[1723347493346,0.163071,61323.0,61318.0,0.0009163]
[1723347493556,0.163073,61323.0,61318.0,0.1649993]
[1723347493760,0.169073,61323.0,61319.0,0.001]
[1723347493911,0.169073,61323.0,61319.0,0.164081]
[1723347494341,0.163073,61323.0,61319.0,0.163081]
[1723347494544,0.163073,61323.0,61318.0,0.0009163]
[1723347494545,0.163081,61319.0,61318.0,0.0009163]
[1723347494715,0.489244,61319.0,61318.0,0.0009163]
[1723347495321,0.163081,61319.0,61318.0,0.0009163]
[1723347496398,0.163081,61319.0,61318.0,0.0019163]
[1723347496570,0.163081,61319.0,61318.0,0.0009163]
[1723347496978,0.163081,61319.0,61318.0,0.0059163]
[1723347497173,0.163081,61319.0,61318.0,0.0009163]
[1723347497743,0.164081,61319.0,61318.0,0.0029163]
[1723347497879,0.164081,61319.0,61318.0,0.0009163]
[1723347498276,0.164081,61319.0,61318.0,0.0039163]
[1723347499116,0.163081,61319.0,61318.0,0.0039163]
[1723347499278,0.163081,61319.0,61318.0,0.0059163]
[1723347501373,1.014607,61319.0,61318.0,0.0059163]
[1723347502429,1.014607,61319.0,61318.0,0.0039163]
[1723347502430,0.688444,61319.0,61318.0,0.0039163]
[1723347502591,0.688444,61319.0,61318.0,0.0009163]
[1723347502909,1.014607,61319.0,61318.0,0.0019163]
[1723347503726,1.015607,61319.0,61318.0,0.0019163]
[1723347505099,0.689444,61319.0,61318.0,0.0019163]
[1723347505324,1.015607,61319.0,61318.0,0.0019163]
[1723347505529,0.689444,61319.0,61318.0,0.0019163]
[1723347506071,1.015607,61319.0,61318.0,0.0019163]
[1723347506455,1.32612192,61319.0,61318.0,0.0019163]
[1723347509273,0.689444,61319.0,61318.0,0.0019163]
[1723347509684,0.490244,61319.0,61318.0,0.0019163]
[1723347512950,0.53917641,61319.0,61318.0,0.0019163]
[1723347513528,0.56352024,61319.0,61318.0,0.0019163]
[1723347514241,0.490244,61319.0,61318.0,0.0019163]
[1723347515166,0.164081,61319.0,61318.0,0.0019163]
[1723347515557,0.53918401,61319.0,61318.0,0.0019163]
[1723347516108,0.490244,61319.0,61318.0,0.0019163]
[1723347516303,0.001,61319.0,61318.0,0.0019163]
[1723347517755,0.164081,61319.0,61318.0,0.0019163]
[1723347518183,0.21302208,61319.0,61318.0,0.0019163]
[1723347518381,0.164081,61319.0,61318.0,0.0019163]
[1723347518601,0.163081,61319.0,61318.0,0.0019163]
[1723347518803,0.21302208,61319.0,61318.0,0.0009163]
[1723347519289,0.22246433,61319.0,61318.0,0.0099163]
[1723347520122,0.17352325,61319.0,61318.0,0.0099163]
[1723347520357,0.164081,61319.0,61318.0,0.0099163]
[1723347520753,0.165081,61319.0,61318.0,0.0159163]
[1723347523668,0.244981,61319.0,61318.0,0.0159163]
[1723347528448,0.0819,61319.0,61318.0,0.0159163]
[1723347528649,0.244981,61319.0,61318.0,0.0159163]
[1723347528838,0.0819,61319.0,61318.0,0.0159163]
[1723347530420,0.244981,61319.0,61318.0,0.0159163]
[1723347532325,0.0819,61319.0,61318.0,0.0159163]
[1723347533160,0.002,61319.0,61318.0,1.43785862]
[1723347533821,0.002,61319.0,61318.0,1.69777531]
[1723347533966,0.002,61319.0,61318.0,1.11169062]
[1723347534850,0.002,61319.0,61318.0,0.9762363]
[1723347535239,0.002,61319.0,61318.0,1.11166849]
[1723347535751,0.002,61319.0,61318.0,1.43783649]
[1723347536208,0.002,61319.0,61318.0,1.44783649]
[1723347537196,0.002,61319.0,61318.0,1.43783649]
[1723347538798,0.002,61319.0,61318.0,1.44783649]
[1723347539490,0.002,61319.0,61318.0,2.75774025]
[1723347539693,0.002,61319.0,61318.0,3.25516977]
[1723347539899,0.002,61319.0,61318.0,3.46846895]
[1723347540091,0.49107874,61343.0,61331.0,0.01]
[1723347540300,0.49107874,61343.0,61342.0,1.28164]
[1723347540430,0.000832,61349.0,61348.0,0.489012]
[1723347540821,0.000832,61349.0,61348.0,0.81502]
[1723347541024,0.000832,61349.0,61348.0,1.220328]
[1723347541264,0.000832,61349.0,61348.0,1.56228137]
[1723347541640,0.000832,61349.0,61348.0,1.55227423]
[1723347541950,0.000832,61349.0,61348.0,1.56227423]
[1723347542163,0.000832,61349.0,61348.0,1.56826581]
[1723347542331,0.001832,61349.0,61348.0,1.56826581]
[1723347542688,0.001832,61349.0,61348.0,1.57026581]
[1723347542910,0.001832,61349.0,61348.0,1.56826581]
[1723347543099,0.001832,61349.0,61348.0,2.52009673]
[1723347543296,0.001832,61349.0,61348.0,2.53709673]
[1723347543297,0.000832,61349.0,61348.0,2.53709673]
[1723347543854,0.001832,61349.0,61348.0,2.55109673]
[1723347544301,0.001832,61349.0,61348.0,2.59369553]
[1723347544480,0.000832,61349.0,61348.0,2.593663]
[1723347544696,0.001832,61349.0,61348.0,2.607663]
[1723347545047,0.001832,61349.0,61348.0,2.579663]
[1723347545048,0.000832,61349.0,61348.0,2.579663]
[1723347545249,0.000832,61349.0,61348.0,2.5230636]
[1723347545627,0.000832,61349.0,61348.0,2.5510636]
[1723347545628,0.002832,61349.0,61348.0,2.5510636]
[1723347545826,0.001832,61349.0,61348.0,2.5370636]
[1723347546249,0.002832,61349.0,61348.0,2.5510636]
[1723347546383,0.002832,61349.0,61348.0,2.41568493]
[1723347546782,0.002832,61349.0,61348.0,2.08767693]
[1723347547008,0.002832,61349.0,61348.0,2.06467693]
[1723347547215,0.001832,61349.0,61348.0,2.05067693]
[1723347547884,0.002832,61349.0,61348.0,2.06568724]
[1723347548397,0.000832,61349.0,61348.0,2.03868724]
[1723347548571,0.001832,61349.0,61348.0,1.94035092]
[1723347548744,0.002832,61349.0,61348.0,1.95335092]
[1723347549068,0.001832,61349.0,61348.0,1.93735092]
[1723347549322,0.002832,61349.0,61348.0,1.95135092]
[1723347549723,0.002832,61349.0,61348.0,1.95335092]
[1723347550603,0.002832,61349.0,61348.0,2.06668531]
[1723347551161,0.002832,61349.0,61348.0,2.08868531]
[1723347552102,0.002832,61349.0,61348.0,2.06668531]
[1723347552304,0.002832,61349.0,61348.0,2.08868531]
[1723347552662,0.002832,61349.0,61348.0,2.06668531]
[1723347552868,0.002832,61349.0,61348.0,1.93135092]
[1723347553683,0.002832,61349.0,61348.0,1.95335092]
[1723347553937,0.002832,61349.0,61348.0,1.93135092]
[1723347554119,0.002832,61349.0,61348.0,1.95335092]
[1723347555032,0.002832,61349.0,61348.0,1.95987892]
[1723347557453,0.002832,61349.0,61348.0,1.93787892]
[1723347558588,0.002832,61349.0,61348.0,1.95987892]
[1723347559947,0.002832,61349.0,61348.0,2.09521844]
[1723347560770,0.002832,61349.0,61348.0,2.07321844]
[1723347561983,0.002832,61349.0,61348.0,1.93787892]
[1723347562182,0.002832,61349.0,61348.0,2.0732203]
[1723347562588,0.002832,61349.0,61348.0,2.0952203]
[1723347562884,0.002832,61349.0,61348.0,2.0340203]
[1723347565644,0.002832,61349.0,61348.0,1.89867892]
[1723347565855,0.002832,61349.0,61348.0,2.03401715]
[1723347566526,0.002832,61349.0,61348.0,2.36002515]
[1723347566747,0.002832,61349.0,61348.0,2.42152515]
[1723347566946,0.002832,61349.0,61348.0,2.47814141]
[1723347567195,0.002832,61349.0,61348.0,2.42152515]
[1723347568392,0.002832,61349.0,61348.0,2.86136885]
[1723347569966,0.002832,61349.0,61348.0,2.28618692]
[1723347570176,0.002832,61349.0,61348.0,2.86136092]
[1723347571389,0.002832,61349.0,61348.0,2.7348542]
[1723347572981,0.002832,61349.0,61348.0,3.0608622]
[1723347573195,0.002832,61349.0,61348.0,3.06087192]
[1723347574381,0.002832,61349.0,61348.0,2.83683898]
[1723347574577,0.002832,61349.0,61348.0,2.5999981]
[1723347574796,0.002832,61349.0,61348.0,2.83684083]
[1723347575143,0.002832,61349.0,61348.0,2.69604083]
[1723347575501,0.002832,61349.0,61348.0,2.67404083]
[1723347575711,0.002832,61349.0,61348.0,2.69604083]
[1723347577181,0.002832,61349.0,61348.0,2.43720741]
[1723347577355,0.002832,61349.0,61348.0,2.4965548]
[1723347580748,0.002832,61349.0,61348.0,2.4945548]
[1723347580946,0.002832,61349.0,61348.0,2.4945576]
[1723347581941,0.002832,61349.0,61348.0,2.49455957]
[1723347582393,0.002832,61349.0,61348.0,2.49655957]
[1723347583934,0.002832,61349.0,61348.0,2.49455957]
[1723347584275,0.002832,61349.0,61348.0,2.39258451]
[1723347584494,0.002832,61349.0,61348.0,1.98903065]
[1723347584684,0.002832,61349.0,61348.0,2.54491753]
[1723347584931,0.002832,61349.0,61348.0,2.3945879]
[1723347585326,0.002832,61349.0,61348.0,2.4914695]
[1723347585528,0.002832,61349.0,61348.0,2.4894695]
[1723347585709,0.002832,61349.0,61348.0,2.4743879]
[1723347586104,0.002832,61349.0,61348.0,2.4723879]
[1723347586515,0.002832,61349.0,61348.0,2.54704875]
[1723347586827,0.002832,61349.0,61348.0,2.52504875]
[1723347587481,0.002832,61349.0,61348.0,2.54504875]
[1723347587650,0.002832,61349.0,61348.0,2.52504875]
[1723347588256,0.002832,61349.0,61348.0,1.94983977]
[1723347588582,0.002832,61349.0,61348.0,2.52506622]
[1723347589118,0.002832,61349.0,61348.0,1.1803885]
[1723347589119,0.146232,61349.0,61348.0,1.1803885]
[1723347589228,0.146232,61349.0,61348.0,0.9773674]
[1723347589951,0.144232,61349.0,61348.0,0.9503674]
[1723347590371,0.145232,61349.0,61348.0,0.9643674]
[1723347590530,0.145232,61349.0,61348.0,0.6383594]
[1723347590730,0.145232,61349.0,61348.0,0.3123514]
[1723347590937,0.146232,61349.0,61348.0,0.3243514]
[1723347591145,0.146232,61349.0,61348.0,0.1613474]
[1723347591367,0.145232,61349.0,61348.0,0.014]
[1723347591745,0.309233,61349.0,61348.0,0.026]
[1723347592300,0.309233,61349.0,61348.0,0.012]
[1723347592648,0.308233,61349.0,61348.0,0.026]
[1723347592765,0.146232,61349.0,61348.0,0.026]
[1723347592969,0.144232,61349.0,61347.0,0.163006]
[1723347593168,0.145232,61349.0,61348.0,0.007]
[1723347593408,0.146232,61349.0,61348.0,0.013]
[1723347593622,0.146232,61349.0,61348.0,0.58385846]
[1723347593773,0.145232,61349.0,61348.0,0.57785846]
[1723347594330,0.146232,61349.0,61348.0,0.57785846]
[1723347594725,0.145232,61349.0,61348.0,0.496012]
[1723347594890,0.146232,61349.0,61348.0,0.502012]
[1723347598201,0.146232,61349.0,61348.0,0.82802]
[1723347598399,0.082632,61349.0,61348.0,0.82802]
[1723347599371,0.002832,61349.0,61348.0,0.82802]
[1723347599835,0.002832,61349.0,61348.0,1.39968938]
[1723347600047,0.000832,61349.0,61348.0,1.51638938]
[1723347600176,0.000832,61349.0,61348.0,1.65175825]
[1723347600389,0.002832,61349.0,61348.0,1.67075825]
[1723347600772,0.000832,61349.0,61348.0,1.65175825]
[1723347600969,0.000832,61349.0,61348.0,1.64132661]
[1723347601233,0.001832,61349.0,61348.0,1.63875825]
[1723347601641,0.001832,61349.0,61348.0,1.63175825]
[1723347601848,0.000832,61349.0,61348.0,1.63175825]
[1723347602150,0.000832,61349.0,61348.0,1.51038938]
[1723347602363,0.000832,61349.0,61348.0,1.64574712]
[1723347602576,0.000832,61349.0,61348.0,1.56904712]
[1723347602912,0.000832,61349.0,61348.0,1.57504712]
[1723347603114,0.000832,61349.0,61348.0,1.54504712]
[1723347603360,0.000832,61349.0,61348.0,1.55904712]
[1723347603537,0.000832,61349.0,61348.0,1.54504712]
[1723347603965,0.001832,61349.0,61348.0,1.57304712]
[1723347604337,0.081832,61349.0,61348.0,1.45420066]
[1723347604721,0.082832,61349.0,61348.0,1.46820066]
[1723347605277,0.000832,61349.0,61348.0,1.45420066]
[1723347605483,0.143832,61349.0,61348.0,1.29038574]
[1723347605664,0.144832,61349.0,61348.0,1.30438574]
[1723347605858,0.144832,61349.0,61348.0,1.29038574]
[1723347606069,0.144832,61349.0,61348.0,1.30439037]
[1723347607017,0.144832,61349.0,61348.0,0.16336237]
[1723347607220,0.144832,61349.0,61348.0,0.191004]
[1723347607830,0.307833,61349.0,61348.0,0.028]
[1723347608134,0.633836,61349.0,61348.0,0.028]
[1723347608705,0.633836,61349.0,61348.0,0.014]
[1723347608706,0.632836,61349.0,61348.0,0.014]
[1723347608899,0.143,61348.0,61344.0,0.163014]
[1723347609094,0.062,61347.0,61344.0,0.163014]
[1723347609296,0.081,61346.0,61344.0,0.163014]
[1723347609933,0.081,61346.0,61335.0,0.326075]
[1723347609934,0.081,61342.0,61335.0,0.326075]
[1723347610134,0.062,61341.0,61339.0,0.163027]
[1723347610519,0.081,61340.0,61339.0,0.163027]
[1723347612366,0.081,61340.0,61339.0,0.165027]
[1723347613359,0.081,61340.0,61339.0,0.163027]
[1723347613561,0.081,61340.0,61339.0,0.165027]
[1723347613786,0.081,61340.0,61339.0,0.166027]
[1723347614333,0.081,61340.0,61339.0,0.165027]
[1723347614736,0.081,61340.0,61339.0,0.166027]
[1723347614957,0.081,61340.0,61339.0,0.164027]
[1723347615367,0.081,61340.0,61339.0,0.166027]
[1723347615570,0.163018,61343.0,61339.0,0.166027]
[1723347615571,0.081,61344.0,61339.0,0.003]
[1723347615899,0.081,61344.0,61343.0,0.163017]
[1723347616102,0.081,61344.0,61343.0,0.489052]
[1723347617507,0.0005,61347.0,61346.0,0.163009]
[1723347617734,0.0005,61347.0,61346.0,0.815047]
[1723347619211,0.0005,61347.0,61346.0,0.823047]
[1723347619617,0.0005,61347.0,61346.0,0.815047]
[1723347619817,0.0005,61347.0,61346.0,0.823047]
[1723347620019,0.0005,61347.0,61346.0,0.817047]
[1723347620237,0.0005,61347.0,61346.0,0.815047]
[1723347620428,0.0005,61347.0,61346.0,0.826047]
[1723347620660,0.0015,61347.0,61346.0,0.836047]
[1723347621145,0.0015,61347.0,61346.0,1.35888092]
[1723347621276,0.0015,61347.0,61346.0,1.57796051]
[1723347621487,0.0015,61347.0,61346.0,1.66116051]
[1723347621864,0.0015,61347.0,61346.0,1.66316051]
[1723347622067,0.0015,61347.0,61346.0,1.66116051]
[1723347622227,0.0015,61347.0,61346.0,1.63016051]
[1723347622424,0.002332,61347.0,61346.0,1.49478092]
[1723347622592,0.001332,61347.0,61346.0,1.63414883]
[1723347623044,0.002332,61347.0,61346.0,1.64614883]
[1723347626784,0.002332,61347.0,61346.0,1.51078092]
[1723347626957,0.002332,61347.0,61346.0,1.64614887]
[1723347627565,0.002332,61347.0,61346.0,1.63614887]
[1723347627970,0.002332,61347.0,61346.0,1.64614887]
[1723347628177,0.002332,61347.0,61346.0,1.63614887]
[1723347628975,0.002332,61347.0,61346.0,1.48924887]
[1723347631737,0.002332,61347.0,61346.0,1.4923019]
[1723347633603,0.002332,61347.0,61346.0,1.6055019]
[1723347633816,0.002332,61347.0,61346.0,1.5855019]
[1723347634631,0.002332,61347.0,61346.0,1.6075019]
[1723347635034,0.002332,61347.0,61346.0,1.6055019]
[1723347635232,0.002332,61347.0,61346.0,1.5855019]
[1723347635643,0.002332,61347.0,61346.0,1.58550187]
[1723347636574,0.002332,61347.0,61346.0,1.60550187]
[1723347637268,0.002332,61347.0,61346.0,1.47213395]
[1723347637429,0.002332,61347.0,61346.0,1.60750185]
[1723347638257,0.064232,61347.0,61346.0,1.49230185]
[1723347638419,0.064232,61347.0,61346.0,0.65344893]
[1723347638828,0.144032,61347.0,61346.0,0.32742993]
[1723347639263,0.144032,61347.0,61346.0,0.19206203]
[1723347639987,0.144032,61347.0,61346.0,0.32744511]
[1723347640235,0.144032,61347.0,61346.0,0.19206203]
[1723347640642,0.144032,61347.0,61346.0,0.32744459]
[1723347641250,0.144032,61347.0,61346.0,0.19206203]
[1723347641581,0.144032,61347.0,61346.0,0.6534641]
[1723347642945,0.144032,61347.0,61346.0,0.3274451]
[1723347644559,0.144032,61347.0,61346.0,0.1644361]
[1723347644763,0.144032,61347.0,61346.0,0.02905303]
[1723347644983,0.307039,61347.0,61346.0,0.02905303]
[1723347645106,0.307039,61347.0,61346.0,0.026]
[1723347645933,0.144032,61347.0,61346.0,0.026]
[1723347646133,0.144032,61347.0,61346.0,0.02849978]
[1723347647059,0.633053,61347.0,61346.0,0.02849978]
[1723347647257,0.633053,61347.0,61346.0,0.026]
[1723347648024,0.632053,61347.0,61346.0,0.014]
[1723347648193,0.306039,61347.0,61342.0,0.16302]